bitfinex/quotes_BTCUSD_20250522
["timestamp","ask_amount","ask_price","bid_price","bid_amount"]
[1747920041793,0.31880228,111110.0,111100.0,0.74759066]
[1747920042018,0.30968507,111110.0,111100.0,0.74759066]
[1747920042289,0.23013951,111110.0,111100.0,0.79019066]
[1747920042748,0.21944545,111110.0,111100.0,0.79019066]
[1747920042980,0.20944545,111110.0,111100.0,0.79019066]
[1747920043200,0.21744545,111110.0,111100.0,0.80449131]
[1747920043665,0.21044545,111110.0,111100.0,0.80449131]
[1747920043894,0.21544545,111110.0,111100.0,0.80449131]
[1747920047352,0.21544545,111110.0,111100.0,0.78429131]
[1747920047989,0.21544545,111110.0,111100.0,0.76189131]
[1747920048658,0.30499101,111110.0,111100.0,0.76185131]
[1747920048881,0.30499101,111110.0,111100.0,0.80365131]
[1747920049807,0.21544545,111110.0,111100.0,0.80365131]
[1747920050025,0.21544545,111110.0,111100.0,5.85365131]
[1747920051005,0.21544545,111110.0,111100.0,6.03366931]
[1747920051227,0.02687968,111110.0,111100.0,6.06067102]
[1747920051455,0.04487904,111110.0,111100.0,6.40067102]
[1747920051659,0.05387904,111110.0,111100.0,6.40067102]
[1747920051869,0.2248814,111110.0,111100.0,6.38267012]
[1747920052074,0.2248814,111110.0,111100.0,6.38267021]
[1747920052275,0.21088172,111110.0,111100.0,6.38267021]
[1747920052700,0.21188172,111110.0,111100.0,6.38367021]
[1747920052902,0.20388172,111110.0,111100.0,6.38267021]
[1747920053102,0.20388172,111110.0,111100.0,6.39167102]
[1747920053556,0.1948818,111110.0,111100.0,6.38267021]
[1747920054535,0.1948818,111110.0,111100.0,6.39167094]
[1747920054739,0.2008818,111110.0,111100.0,6.40167159]
[1747920055142,0.2008818,111110.0,111100.0,6.49121715]
[1747920055367,0.00588,111110.0,111100.0,6.50821797]
[1747920055714,0.203881,111110.0,111100.0,6.49921764]
[1747920055918,0.206881,111110.0,111100.0,6.23037764]
[1747920056132,0.03587912,111110.0,111100.0,6.87141797]
[1747920056344,0.00888,111110.0,111100.0,6.87141797]
[1747920056549,0.02687912,111110.0,111100.0,6.87141797]
[1747920056769,0.00888,111110.0,111100.0,6.87141797]
[1747920056987,0.19996609,111130.0,111120.0,0.58078358]
[1747920057192,0.01099782,111130.0,111120.0,6.38752785]
[1747920057455,0.002,111130.0,111120.0,6.38752785]
[1747920057666,0.002,111130.0,111120.0,6.4020687]
[1747920057984,0.002,111130.0,111120.0,6.40166364]
[1747920058451,0.006,111130.0,111120.0,6.40266364]
[1747920058848,0.21792262,111150.0,111140.0,0.24074811]
[1747920059052,0.21792262,111150.0,111140.0,5.92274811]
[1747920059427,0.21792335,111150.0,111140.0,6.02129092]
[1747920059636,0.21792335,111150.0,111140.0,6.03015174]
[1747920059841,0.20892699,111150.0,111140.0,6.01215716]
[1747920060065,0.19093387,111150.0,111140.0,6.01215716]
[1747920060269,0.19593387,111150.0,111140.0,6.01315716]
[1747920060681,0.19593387,111150.0,111140.0,6.02215457]
[1747920061339,0.19593387,111150.0,111140.0,6.01315716]
[1747920061561,0.19893387,111150.0,111140.0,6.03215206]
[1747920061786,0.19893387,111150.0,111140.0,6.02315465]
[1747920062663,0.19893387,111150.0,111140.0,6.03215198]
[1747920063111,0.19893387,111150.0,111140.0,6.02315465]
[1747920063321,0.19893387,111150.0,111140.0,6.0321519]
[1747920063554,0.0189966,111150.0,111140.0,6.04114899]
[1747920063781,0.21692666,111150.0,111140.0,6.0321519]
[1747920064231,0.02799248,111150.0,111140.0,6.38114899]
[1747920064460,0.01,111150.0,111140.0,6.38114899]
[1747920064683,0.01399612,111150.0,111140.0,6.38014899]
[1747920064898,0.01699612,111150.0,111140.0,6.38114899]
[1747920065122,0.02599248,111150.0,111140.0,6.38114899]
[1747920065334,0.02299248,111150.0,111140.0,6.38014899]
[1747920065575,0.21092683,111150.0,111140.0,5.71215959]
[1747920065807,0.21092683,111150.0,111140.0,6.3709115]
[1747920066010,0.20992683,111150.0,111140.0,5.72915433]
[1747920066246,0.21092683,111150.0,111140.0,6.3708715]
[1747920066517,0.02199296,111150.0,111140.0,6.3708715]
[1747920066729,0.02199296,111150.0,111140.0,6.37986859]
[1747920066940,0.02199248,111150.0,111140.0,6.37986859]
[1747920067110,0.004,111150.0,111140.0,6.37986859]
[1747920069352,0.03098908,111150.0,111140.0,6.11014859]
[1747920069737,0.030989,111150.0,111140.0,6.37982859]
[1747920070389,0.03998568,111150.0,111140.0,6.37982859]
[1747920070601,0.0399856,111150.0,111140.0,6.37982859]
[1747920071439,0.04898228,111150.0,111140.0,6.37982859]
[1747920071848,0.02199248,111150.0,111140.0,6.37982859]
[1747920072061,0.0399856,111150.0,111140.0,6.37982859]
[1747920072692,0.22891939,111150.0,111140.0,6.37978859]
[1747920072892,0.04898237,111150.0,111140.0,6.35958859]
[1747920073118,0.0399856,111150.0,111140.0,6.33698859]
[1747920073339,0.03998552,111150.0,111140.0,6.33698859]
[1747920073553,0.03998552,111150.0,111140.0,6.35938859]
[1747920073954,0.22891939,111150.0,111140.0,6.74766859]
[1747920074944,0.03098892,111150.0,111140.0,6.76746859]
[1747920075123,0.0399856,111150.0,111140.0,6.76746859]
[1747920075605,0.03098892,111150.0,111140.0,6.76746859]
[1747920076019,0.01299612,111150.0,111140.0,6.76746859]
[1747920076408,0.02199248,111150.0,111140.0,6.76746859]
[1747920076563,0.0399856,111150.0,111140.0,6.76746859]
[1747920076772,0.03098892,111150.0,111140.0,6.76746859]
[1747920076993,0.03998552,111150.0,111140.0,6.76746859]
[1747920077195,0.22891931,111150.0,111140.0,6.76746859]
[1747920077379,0.21992368,111150.0,111140.0,6.06663708]
[1747920077568,0.25642724,111150.0,111140.0,6.71623215]
[1747920077774,0.02199337,111150.0,111140.0,6.73422649]
[1747920077979,0.02199296,111150.0,111140.0,6.75612649]
[1747920078401,0.03098964,111150.0,111140.0,6.75612649]
[1747920078603,0.03098964,111150.0,111140.0,6.77592649]
[1747920078830,0.02199296,111150.0,111140.0,6.77592649]
[1747920079323,0.030989,111150.0,111140.0,6.77592649]
[1747920079747,0.0399856,111150.0,111140.0,6.77592649]
[1747920081962,0.030989,111150.0,111140.0,6.77592649]
[1747920082404,0.01299628,111150.0,111140.0,6.77592649]
[1747920082542,0.02199272,111150.0,111140.0,6.77592649]
[1747920082751,0.01299628,111150.0,111140.0,6.77592649]
[1747920084546,0.02199272,111150.0,111140.0,6.77592649]
[1747920084759,0.03054654,111150.0,111140.0,6.77592649]
[1747920086785,0.01255382,111150.0,111140.0,6.77592649]
[1747920086996,0.03054646,111150.0,111140.0,6.77592649]
[1747920087206,0.02155002,111150.0,111140.0,6.77592649]
[1747920087411,0.03054638,111150.0,111140.0,6.77592649]
[1747920088819,0.01255382,111150.0,111140.0,6.77592649]
[1747920089200,0.01255382,111150.0,111140.0,6.75612649]
[1747920089440,0.01255382,111150.0,111140.0,6.58843149]
[1747920092291,0.004,111150.0,111140.0,6.24843149]
[1747920093325,0.003,111150.0,111140.0,6.24843149]
[1747920094164,0.003,111150.0,111140.0,6.22653149]
[1747920095683,0.002,111150.0,111140.0,6.26803149]
[1747920096121,0.24424297,111170.0,111160.0,0.20690797]
[1747920096122,0.0463,111170.0,111160.0,0.20690797]
[1747920096303,0.06428989,111170.0,111160.0,5.72073297]
[1747920096479,0.07328446,111170.0,111160.0,5.72073297]
[1747920097177,0.08227953,111170.0,111160.0,5.72073297]
[1747920097596,0.08427953,111170.0,111160.0,5.72073297]
[1747920098032,0.07528446,111170.0,111160.0,5.72073297]
[1747920098437,0.06628948,111170.0,111160.0,5.73419046]
[1747920098620,0.06628948,111170.0,111160.0,5.82373602]
[1747920098861,0.07528446,111170.0,111160.0,5.82373602]
[1747920099064,0.07628446,111170.0,111160.0,5.82373602]
[1747920099296,0.08527953,111170.0,111160.0,5.82373602]
[1747920099538,0.27417941,111170.0,111160.0,5.82373618]
[1747920099756,0.25618993,111170.0,111160.0,4.25233563]
[1747920099980,0.2028947,111170.0,111160.0,4.26133126]
[1747920100172,0.05257827,111190.0,111180.0,0.20687074]
[1747920100407,0.06157115,111190.0,111180.0,5.8102413]
[1747920101008,0.07056411,111190.0,111180.0,5.8102413]
[1747920101219,0.06218584,111190.0,111180.0,6.1502413]
[1747920101429,0.07117896,111190.0,111180.0,6.1502413]
[1747920101808,0.07317896,111190.0,111180.0,6.1502413]
[1747920102337,0.06418584,111190.0,111180.0,6.1502413]
[1747920102550,0.04318584,111190.0,111180.0,6.1502413]
[1747920103009,0.07407896,111190.0,111180.0,6.1502413]
[1747920103631,0.06508584,111190.0,111180.0,6.1502413]
[1747920104037,0.07407888,111190.0,111180.0,6.1502413]
[1747920104181,0.08307209,111190.0,111180.0,6.1502413]
[1747920104593,0.07407888,111190.0,111180.0,6.1502413]
[1747920104805,0.083072,111190.0,111180.0,6.1502413]
[1747920105197,0.09206537,111190.0,111180.0,6.1502413]
[1747920105403,0.08307241,111190.0,111180.0,6.1502413]
[1747920105600,0.07407912,111190.0,111180.0,6.1502413]
[1747920105815,0.08407233,111190.0,111180.0,6.1502413]
[1747920108103,0.09306562,111190.0,111180.0,6.1502413]
[1747920109296,0.09306562,111190.0,111180.0,6.1984013]
[1747920110343,0.08407266,111190.0,111180.0,6.1983613]
[1747920111751,0.09306619,111190.0,111180.0,5.9288013]
[1747920111885,0.09306611,111190.0,111180.0,6.1983613]
[1747920112478,0.07507937,111190.0,111180.0,6.5383613]
[1747920112686,0.08407274,111190.0,111180.0,6.5383613]
[1747920112889,0.26394552,111190.0,111180.0,6.52936745]
[1747920113131,0.26394544,111190.0,111180.0,6.52936745]
[1747920113342,0.27293946,111190.0,111180.0,6.52936745]
[1747920113549,0.27293946,111190.0,111180.0,6.25081336]
[1747920113772,0.24595943,111190.0,111180.0,3.09200556]
[1747920113982,0.24595943,111190.0,111180.0,1.37626]
[1747920114329,0.24595943,111190.0,111180.0,0.72816]
[1747920114519,0.24595943,111190.0,111180.0,1.35956]
[1747920118232,0.24595943,111190.0,111180.0,1.09]
[1747920118410,0.24595943,111190.0,111180.0,1.35956]
[1747920121500,0.24595943,111190.0,111180.0,6.4307478]
[1747920121973,0.24595943,111190.0,111180.0,6.43974206]
[1747920122737,0.24595943,111190.0,111180.0,6.43074788]
[1747920122939,0.2369659,111190.0,111180.0,6.43074788]
[1747920123162,0.2369659,111190.0,111180.0,5.74526]
[1747920123415,0.2369659,111190.0,111180.0,5.56626]
[1747920125300,0.2369659,111190.0,111180.0,5.22626]
[1747920126602,0.2369659,111190.0,111180.0,3.66346]
[1747920126810,0.2369659,111190.0,111180.0,3.85234288]
[1747920127023,0.2369659,111190.0,111180.0,3.66346]
[1747920127447,0.2369659,111190.0,111180.0,3.84334846]
[1747920127671,0.2369659,111190.0,111180.0,3.85234288]
[1747920127878,0.2369659,111190.0,111180.0,3.84334846]
[1747920128080,0.2369659,111190.0,111180.0,3.66346]
[1747920128921,0.2369659,111190.0,111180.0,3.3939]
[1747920129137,0.2369659,111190.0,111180.0,3.66346]
[1747920129354,0.2369659,111190.0,111180.0,1.27616]
[1747920129577,0.2369659,111190.0,111180.0,1.20116]
[1747920129806,0.2369659,111190.0,111180.0,1.16536]
[1747920130446,0.2369659,111190.0,111180.0,1.01956]
[1747920132256,0.2369659,111190.0,111180.0,1.35956]
[1747920138179,0.01399312,111190.0,111180.0,6.45772984]
[1747920138404,0.03197978,111190.0,111180.0,6.45772984]
[1747920139164,0.005,111190.0,111180.0,6.5472754]
[1747920139366,0.01399296,111190.0,111180.0,6.5472754]
[1747920139578,0.02298617,111190.0,111180.0,6.5472754]
[1747920140002,0.02298608,111190.0,111180.0,6.5681754]
[1747920140424,0.01399296,111190.0,111180.0,6.5681754]
[1747920140900,0.005,111190.0,111180.0,6.5681754]
[1747920141148,0.005,111190.0,111180.0,6.5865754]
[1747920145608,0.003,111190.0,111180.0,6.5865754]
[1747920145841,0.002,111190.0,111180.0,6.5865754]
[1747920146074,0.002,111190.0,111180.0,6.5875754]
[1747920146574,0.002,111190.0,111180.0,6.5885754]
[1747920149141,0.002,111190.0,111180.0,6.5701754]
[1747920149592,0.04078277,111210.0,111200.0,0.54683354]
[1747920149807,0.04078277,111210.0,111200.0,5.7882041]
[1747920149968,0.04078269,111210.0,111200.0,5.7882041]
[1747920150182,0.04977428,111210.0,111200.0,5.7882041]
[1747920150381,0.04078269,111210.0,111200.0,5.7882041]
[1747920150903,0.04977436,111210.0,111200.0,5.7882041]
[1747920151037,0.04078269,111210.0,111200.0,5.7882041]
[1747920151262,0.04977428,111210.0,111200.0,5.7882041]
[1747920151783,0.07227436,111210.0,111200.0,5.7882041]
[1747920151973,0.07227428,111210.0,111200.0,5.7882041]
[1747920152170,0.07427428,111210.0,111200.0,5.7892041]
[1747920152384,0.05629126,111210.0,111200.0,5.7892041]
[1747920152619,0.006,111210.0,111200.0,5.5475841]
[1747920152827,0.006,111210.0,111200.0,6.19600495]
[1747920153239,0.002,111230.0,111220.0,0.54679635]
[1747920153433,0.002,111230.0,111220.0,5.81056691]
[1747920154251,0.002,111230.0,111220.0,5.83110776]
[1747920155279,0.002,111230.0,111220.0,5.82510776]
[1747920155678,0.002,111230.0,111220.0,6.18694776]
[1747920156361,0.003,111230.0,111220.0,6.18694776]
[1747920156554,0.056378,111240.0,111230.0,0.54677775]
[1747920156764,0.056378,111240.0,111230.0,5.90662831]
[1747920157467,0.056378,111240.0,111230.0,5.91994233]
[1747920157888,0.056378,111240.0,111230.0,6.32814233]
[1747920158263,0.06536724,111240.0,111230.0,6.33695219]
[1747920158471,0.04938892,111240.0,111230.0,5.92875219]
[1747920158962,0.05837792,111240.0,111230.0,5.92875219]
[1747920159131,0.06936708,111240.0,111230.0,5.92875219]
[1747920159502,0.0783564,111240.0,111230.0,5.93774216]
[1747920160424,0.06936708,111240.0,111230.0,5.93774216]
[1747920160690,0.07835632,111240.0,111230.0,5.93774216]
[1747920162065,0.06936708,111240.0,111230.0,5.93774216]
[1747920162685,0.06037792,111240.0,111230.0,5.93774216]
[1747920163258,0.06936708,111240.0,111230.0,5.93774216]
[1747920163965,0.06936708,111240.0,111230.0,6.34594216]
[1747920164166,0.01298892,111240.0,111230.0,6.34594216]
[1747920164388,0.02998884,111240.0,111230.0,6.34594216]
[1747920164605,0.021,111240.0,111230.0,6.34594216]
[1747920165017,0.0415,111240.0,111230.0,6.34594216]
[1747920166285,0.0395,111240.0,111230.0,6.34594216]
[1747920166586,0.04648892,111240.0,111230.0,6.34594216]
[1747920166797,0.0385,111240.0,111230.0,6.34594216]
[1747920168586,0.001,111240.0,111230.0,6.34594216]
[1747920168812,0.0194,111240.0,111230.0,6.61534216]
[1747920169084,0.0365,111240.0,111230.0,6.61534216]
[1747920174309,0.001,111240.0,111230.0,6.61534216]
[1747920175186,0.0188,111240.0,111230.0,6.61534216]
[1747920175422,0.0366,111240.0,111230.0,6.61534216]
[1747920177494,0.0366,111240.0,111230.0,6.34594216]
[1747920177692,0.0366,111240.0,111230.0,6.61534216]
[1747920178331,0.05457808,111240.0,111230.0,6.97702216]
[1747920178526,0.06356724,111240.0,111230.0,6.97702216]
[1747920178723,0.054578,111240.0,111230.0,6.97702216]
[1747920178973,0.054578,111240.0,111230.0,7.00397716]
[1747920179602,0.06356724,111240.0,111230.0,7.00397716]
[1747920179816,0.054578,111240.0,111230.0,7.00397716]
[1747920181651,0.054578,111240.0,111230.0,6.73457716]
[1747920181861,0.054578,111240.0,111230.0,6.59577716]
[1747920182544,0.04558892,111240.0,111230.0,6.59577716]
[1747920182766,0.05457792,111240.0,111230.0,6.59577716]
[1747920183021,0.06356708,111240.0,111230.0,6.59577716]
[1747920183213,0.05457792,111240.0,111230.0,6.59577716]
[1747920183806,0.06356708,111240.0,111230.0,6.59577716]
[1747920184056,0.04558892,111240.0,111230.0,5.96469716]
[1747920184403,0.06356724,111240.0,111230.0,6.59577716]
[1747920184613,0.07255665,111240.0,111230.0,6.59577716]
[1747920184827,0.06356724,111240.0,111230.0,6.32637716]
[1747920185008,0.07255665,111240.0,111230.0,6.59577716]
[1747920185349,0.07255656,111240.0,111230.0,6.59577716]
[1747920185550,0.07255665,111240.0,111230.0,6.59577716]
[1747920185969,0.07255656,111240.0,111230.0,6.59577716]
[1747920186185,0.0366,111240.0,111230.0,6.59577716]
[1747920186396,0.05457784,111240.0,111230.0,6.59577716]
[1747920186637,0.05457776,111240.0,111230.0,6.59577716]
[1747920187497,0.06356676,111240.0,111230.0,6.59577716]
[1747920187899,0.05457776,111240.0,111230.0,7.00397716]
[1747920188738,0.06356684,111240.0,111230.0,7.00397716]
[1747920189491,0.25234801,111240.0,111230.0,6.71659738]
[1747920189691,0.07255657,111240.0,111230.0,6.99494719]
[1747920189936,0.07255657,111240.0,111230.0,6.98613733]
[1747920192218,0.06356716,111240.0,111230.0,6.98613733]
[1747920192630,0.07255648,111240.0,111230.0,6.98613733]
[1747920193068,0.08154589,111240.0,111230.0,6.98613733]
[1747920193379,0.07255648,111240.0,111230.0,6.98613733]
[1747920193925,0.07255648,111240.0,111230.0,6.57793733]
[1747920194189,0.0366,111240.0,111230.0,6.57793733]
[1747920197409,0.04558884,111240.0,111230.0,6.57793733]
[1747920197635,0.0366,111240.0,111230.0,6.57793733]
[1747920198097,0.001,111240.0,111230.0,7.00067818]
[1747920199502,0.0356,111240.0,111230.0,7.00067818]
[1747920199744,0.0346,111240.0,111230.0,6.35509733]
[1747920199959,0.04358892,111240.0,111230.0,6.98609733]
[1747920200184,0.04358892,111240.0,111230.0,6.98809733]
[1747920201350,0.05257792,111240.0,111230.0,6.98809733]
[1747920201550,0.06156708,111240.0,111230.0,6.98809733]
[1747920201828,0.06156708,111240.0,111230.0,6.71869733]
[1747920202036,0.05257792,111240.0,111230.0,6.98805733]
[1747920202244,0.07055649,111240.0,111230.0,6.98805733]
[1747920202456,0.07954581,111240.0,111230.0,6.35709733]
[1747920202626,0.07954564,111240.0,111230.0,6.98805733]
[1747920203078,0.06156708,111240.0,111230.0,6.98805733]
[1747920203534,0.05257792,111240.0,111230.0,6.98805733]
[1747920203747,0.06156708,111240.0,111230.0,6.98805733]
[1747920204163,0.06156708,111240.0,111230.0,6.57985733]
[1747920204903,0.05257792,111240.0,111230.0,6.57985733]
[1747920205060,0.06156708,111240.0,111230.0,6.57985733]
[1747920205261,0.25034793,111240.0,111230.0,5.93091747]
[1747920205485,0.23237042,111240.0,111230.0,1.17997402]
[1747920206161,0.23237042,111240.0,111230.0,1.51997402]
[1747920206571,0.23237042,111240.0,111230.0,1.51897402]
[1747920206775,0.23237042,111240.0,111230.0,1.93397402]
[1747920207618,0.23237042,111240.0,111230.0,1.66461402]
[1747920207822,0.23237042,111240.0,111230.0,1.37331402]
[1747920208051,0.23237042,111240.0,111230.0,1.37231402]
[1747920214196,0.23237042,111240.0,111230.0,2.77641402]
[1747920214410,0.23237042,111240.0,111230.0,2.965212]
[1747920214615,0.23237042,111240.0,111230.0,3.05475756]
[1747920214821,0.23237042,111240.0,111230.0,2.86595958]
[1747920215030,0.23237042,111240.0,111230.0,3.05475756]
[1747920215238,0.23237042,111240.0,111230.0,3.06374785]
[1747920216205,0.23237042,111240.0,111230.0,2.87494996]
[1747920216404,0.23237042,111240.0,111230.0,2.86595958]
[1747920217247,0.22338101,111240.0,111230.0,2.86595958]
[1747920217474,0.22338101,111240.0,111230.0,3.04576718]
[1747920217684,0.22338101,111240.0,111230.0,3.05475756]
[1747920219975,0.22338101,111240.0,111230.0,2.87494996]
[1747920221240,0.22338101,111240.0,111230.0,2.86595958]
[1747920222335,0.22338101,111240.0,111230.0,3.04576718]
[1747920223104,0.22338101,111240.0,111230.0,2.71475756]
[1747920223376,0.22338101,111240.0,111230.0,2.72388998]
[1747920223725,0.22338101,111240.0,111230.0,2.535092]
[1747920223938,0.22338101,111240.0,111230.0,2.535572]
[1747920224766,0.22338101,111240.0,111230.0,2.7153796]
[1747920225817,0.22338101,111240.0,111230.0,2.72436989]
[1747920226030,0.22338101,111240.0,111230.0,2.72436998]
[1747920226244,0.05257857,111240.0,111230.0,2.75134013]
[1747920226444,0.07055649,111240.0,111230.0,2.75134013]
[1747920227073,0.0705564,111240.0,111230.0,2.75134013]
[1747920228316,0.2593379,111240.0,111230.0,2.77829513]
[1747920228520,0.25034882,111240.0,111230.0,2.77829521]
[1747920228930,0.24135966,111240.0,111230.0,2.76930532]
[1747920229081,0.24135966,111240.0,111230.0,2.77829521]
[1747920229860,0.24135966,111240.0,111230.0,2.562527]
[1747920230306,0.24135966,111240.0,111230.0,2.57151738]
[1747920230518,0.23237034,111240.0,111230.0,2.535572]
[1747920233421,0.23237034,111240.0,111230.0,2.535532]
[1747920234246,0.23237034,111240.0,111230.0,2.72432981]
[1747920235027,0.23237034,111240.0,111230.0,2.75128581]
[1747920236258,0.23237034,111240.0,111230.0,2.75128589]
[1747920236788,0.22338093,111240.0,111230.0,2.75128589]
[1747920237233,0.22338093,111240.0,111230.0,2.7602761]
[1747920237448,0.22338093,111240.0,111230.0,2.75128589]
[1747920237881,0.21439144,111240.0,111230.0,2.562488]
[1747920238592,0.21439144,111240.0,111230.0,2.535532]
[1747920243117,0.21439144,111240.0,111230.0,2.7153396]
[1747920243317,0.21439144,111240.0,111230.0,2.535532]
[1747920243520,0.21439144,111240.0,111230.0,2.7153396]
[1747920243722,0.21439144,111240.0,111230.0,2.535532]
[1747920245286,0.21439144,111240.0,111230.0,1.904092]
[1747920245491,0.21439144,111240.0,111230.0,2.535532]
[1747920246695,0.21439144,111240.0,111230.0,2.266132]
[1747920246907,0.21439144,111240.0,111230.0,1.25138644]
[1747920247128,0.55439144,111240.0,111230.0,1.25138644]
[1747920247332,0.55439144,111240.0,111230.0,1.24225402]
[1747920247560,0.55439144,111240.0,111230.0,1.03275402]
[1747920253750,0.23360573,111220.0,111210.0,0.06054174]
[1747920253958,0.23360573,111220.0,111210.0,5.3940323]
[1747920254166,0.23360573,111220.0,111210.0,5.40302413]
[1747920254369,0.23360573,111220.0,111210.0,5.40753856]
[1747920254570,0.23360573,111220.0,111210.0,5.35609008]
[1747920254788,0.23360573,111220.0,111210.0,5.82335376]
[1747920254998,0.23360573,111220.0,111210.0,5.82635376]
[1747920255411,0.23360573,111220.0,111210.0,5.82935376]
[1747920257270,0.21520573,111220.0,111210.0,5.83834543]
[1747920257696,0.19780573,111220.0,111210.0,5.83834543]
[1747920259663,0.19780573,111220.0,111210.0,5.82935376]
[1747920259875,0.21562377,111220.0,111210.0,5.81137002]
[1747920260709,0.21562377,111220.0,111210.0,5.63153008]
[1747920261369,0.21562377,111220.0,111210.0,5.54202452]
[1747920261888,0.21562377,111220.0,111210.0,5.92998452]
[1747920262574,0.21562377,111220.0,111210.0,0.01950626]
[1747920262788,0.21562377,111220.0,111210.0,0.38118626]
[1747920262996,0.21562377,111220.0,111210.0,0.65062626]
[1747920263211,0.55562377,111220.0,111210.0,0.36768]
[1747920263431,0.55562377,111220.0,111210.0,0.63712]
[1747920263432,0.64516933,111220.0,111210.0,0.63712]
[1747920263662,0.64516933,111220.0,111210.0,0.006]
[1747920263896,0.65434695,111220.0,111210.0,0.27544]
[1747920264119,0.65434695,111220.0,111210.0,0.26944]
[1747920264339,0.65434695,111220.0,111210.0,0.27044]
[1747920264796,0.65434695,111220.0,111210.0,0.27144]
[1747920266731,0.31434695,111220.0,111210.0,0.27144]
[1747920267158,0.32362364,111220.0,111210.0,0.27144]
[1747920267359,0.31434695,111220.0,111210.0,0.27144]
[1747920276567,0.30516933,111220.0,111210.0,0.27144]
[1747920277383,0.37516933,111220.0,111210.0,0.27144]
[1747920278047,0.28562377,111220.0,111210.0,0.27144]
[1747920278675,0.28562377,111220.0,111210.0,0.27044]
[1747920279554,0.28562377,111220.0,111210.0,0.26944]
[1747920281075,0.01798132,111220.0,111210.0,5.78810607]
[1747920281317,0.21578705,111220.0,111210.0,5.82885597]
[1747920281544,0.22477823,111220.0,111210.0,5.80510607]
[1747920281797,0.19780605,111220.0,111210.0,5.59159056]
[1747920282017,0.19780605,111220.0,111210.0,5.77012249]
[1747920282018,0.18881495,111220.0,111210.0,5.77012249]
[1747920282250,0.18881495,111220.0,111210.0,5.58129056]
[1747920282808,0.18881495,111220.0,111210.0,5.58229056]
[1747920283186,0.22471495,111220.0,111210.0,5.58229056]
[1747920283622,0.22471495,111220.0,111210.0,4.93678556]
[1747920284053,0.18881495,111220.0,111210.0,4.93778556]
[1747920285165,0.18881495,111220.0,111210.0,4.32834556]
[1747920285326,0.18881495,111220.0,111210.0,4.536469]
[1747920285483,0.18881495,111220.0,111210.0,4.543169]
[1747920285927,0.18881495,111220.0,111210.0,4.52747733]
[1747920286144,0.18881495,111220.0,111210.0,4.79695733]
[1747920286569,0.17982377,111220.0,111210.0,4.79695733]
[1747920288477,0.17982377,111220.0,111210.0,4.78665733]
[1747920288680,0.17982377,111220.0,111210.0,4.78665749]
[1747920290190,0.17982377,111220.0,111210.0,4.59782556]
[1747920290422,0.21632377,111220.0,111210.0,3.51662556]
[1747920290622,0.21632377,111220.0,111210.0,3.42708]
[1747920291238,0.21632377,111220.0,111210.0,3.34888]
[1747920291592,0.21632377,111220.0,111210.0,3.32458]
[1747920292369,0.21632377,111220.0,111210.0,2.99368]
[1747920292567,0.21632377,111220.0,111210.0,1.71138]
[1747920295299,0.21632377,111220.0,111210.0,2.07282]
[1747920300339,0.55632377,111220.0,111210.0,0.63292]
[1747920300592,0.21632377,111220.0,111210.0,0.63292]
[1747920301942,0.21632377,111220.0,111210.0,0.63192]
[1747920302757,0.21632377,111220.0,111210.0,5.514225]
[1747920303182,0.00899078,111220.0,111210.0,5.79160249]
[1747920303368,0.18881455,111220.0,111210.0,5.82088607]
[1747920303617,0.0179818,111220.0,111210.0,5.82088607]
[1747920304079,0.0269729,111220.0,111210.0,5.8298775]
[1747920304288,0.21578785,111220.0,111210.0,5.8298775]
[1747920304495,0.21578785,111220.0,111210.0,5.82987766]
[1747920305683,0.20679707,111220.0,111210.0,5.82987766]
[1747920306053,0.19780605,111220.0,111210.0,5.82088607]
[1747920306591,0.19780605,111220.0,111210.0,5.82987766]
[1747920306840,0.19778811,111230.0,111220.0,0.19780557]
[1747920307060,0.19778811,111230.0,111220.0,5.16066535]
[1747920307697,0.19778811,111230.0,111220.0,5.16965629]
[1747920308180,0.035,111240.0,111220.0,5.15167433]
[1747920308416,0.2243607,111240.0,111230.0,5.79381575]
[1747920308625,0.19777154,111240.0,111230.0,6.14954888]
[1747920309264,0.19777154,111240.0,111230.0,6.14954904]
[1747920309654,0.03595698,111240.0,111230.0,6.16752865]
[1747920309862,0.21574842,111240.0,111230.0,6.15853884]
[1747920310017,0.22174842,111240.0,111230.0,6.15853884]
[1747920310234,0.006,111240.0,111230.0,6.16752833]
[1747920310438,0.006,111240.0,111230.0,6.18552833]
[1747920310439,0.003,111240.0,111230.0,6.18552833]
[1747920310648,0.003,111240.0,111230.0,6.20006918]
[1747920311475,0.002,111250.0,111240.0,0.54675917]
[1747920311660,0.01098811,111250.0,111240.0,5.53660973]
[1747920311863,0.002,111250.0,111240.0,5.53660973]
[1747920312075,0.01098811,111250.0,111240.0,5.53660973]
[1747920312287,0.002,111250.0,111240.0,5.55301793]
[1747920313187,0.01098803,111250.0,111240.0,5.55301793]
[1747920313408,0.01997622,111250.0,111240.0,5.55301793]
[1747920314197,0.02896458,111250.0,111240.0,5.55301793]
[1747920314416,0.01997622,111250.0,111240.0,5.55301793]
[1747920314554,0.02896458,111250.0,111240.0,5.55301793]
[1747920314755,0.02896458,111250.0,111240.0,5.56651037]
[1747920315662,0.02896458,111250.0,111240.0,5.55981037]
[1747920316805,0.25272838,111250.0,111240.0,6.15198264]
[1747920316990,0.24374092,111250.0,111240.0,5.53053221]
[1747920317166,0.24374092,111250.0,111240.0,6.16996162]
[1747920317755,0.23475256,111250.0,111240.0,6.16097221]
[1747920317959,0.23475256,111250.0,111240.0,6.17895111]
[1747920318647,0.23475256,111250.0,111240.0,6.18794035]
[1747920319368,0.01997614,111250.0,111240.0,6.19692894]
[1747920319555,0.03795277,111250.0,111240.0,6.19692894]
[1747920320320,0.002,111250.0,111240.0,6.21492894]
[1747920320542,0.002,111270.0,111260.0,0.54672201]
[1747920320744,0.01098642,111270.0,111260.0,6.17589257]
[1747920321388,0.002,111270.0,111260.0,6.17589257]
[1747920321947,0.01098642,111270.0,111260.0,6.17589257]
[1747920323084,0.01997292,111270.0,111260.0,6.17789257]
[1747920323409,0.002,111270.0,111260.0,6.17789257]
[1747920323624,0.01098642,111270.0,111260.0,6.17789257]
[1747920323796,0.002,111270.0,111260.0,6.17793257]
[1747920325465,0.00191507,111270.0,111260.0,6.17793257]
[1747920327698,0.00191507,111270.0,111260.0,6.20377342]
[1747920328751,0.00191507,111270.0,111260.0,6.21047342]
[1747920330375,0.00191507,111270.0,111260.0,6.20377342]
[1747920330652,0.00191507,111270.0,111260.0,6.19247342]
[1747920332360,0.00191507,111270.0,111260.0,6.17793257]
[1747920332361,0.03801507,111270.0,111260.0,6.17793257]
[1747920332576,0.02011507,111270.0,111260.0,6.17793257]
[1747920333036,0.03808815,111270.0,111260.0,6.17793257]
[1747920333258,0.03781507,111270.0,111260.0,6.17793257]
[1747920333470,0.04680157,111270.0,111260.0,5.90853257]
[1747920333687,0.04680157,111270.0,111260.0,6.53877257]
[1747920333898,0.03781507,111270.0,111260.0,6.53877257]
[1747920334548,0.04680149,111270.0,111260.0,6.53877257]